bitfinex-derivatives/quotes_SOLF0:USTF0_20250530
["timestamp","ask_amount","ask_price","bid_price","bid_amount"]
[1748619077419,0.03972544,162.12,162.11,6.1674]
[1748619078318,0.03972544,162.12,162.1,0.03975453]
[1748619079516,6.20682544,162.12,162.1,0.03975453]
[1748619079717,0.03972544,162.12,162.1,0.03975453]
[1748619080018,32.38,162.11,162.01,34.4943]
[1748619080520,6.1687,162.08,162.01,34.4943]
[1748619080714,6.1687,162.08,162.04,6.1699]
[1748619080910,2.0724,162.1,162.01,34.4943]
[1748619081115,0.04229256,162.07,162.06,6.1691]
[1748619081524,6.1667,162.13,162.05,43.05103598]
[1748619081916,32.38,162.16,162.05,43.05103598]
[1748619082114,43.05103598,162.16,162.05,32.38]
[1748619082323,4.1064,162.15,162.05,32.38]
[1748619082521,0.04300673,162.12,162.08,0.04045157]
[1748619082823,6.1677,162.11,162.08,0.04045157]
[1748619084323,32.42300673,162.12,162.08,0.04045157]
[1748619084528,32.42300673,162.12,162.09,6.168]
[1748619084717,32.42300673,162.12,162.08,0.04045157]
[1748619084917,6.1682,162.09,162.08,0.04045157]
[1748619085913,6.168,162.1,162.08,0.04045157]
[1748619086119,32.42300673,162.12,162.08,0.04045157]
[1748619088020,0.04300673,162.12,162.08,0.04045157]
[1748619088226,0.04300673,162.12,162.11,6.1674]
[1748619088526,32.38,162.18,162.09,2.0608]
[1748619088730,32.38,162.18,162.11,10.67103598]
[1748619089527,34.385,162.22,162.13,0.04549341]
[1748619090528,6.1646,162.19,162.16,6.1654]
[1748619090830,34.385,162.22,162.16,0.0422133]
[1748619091233,6.1652,162.17,162.16,0.0422133]
[1748619092732,34.385,162.22,162.16,0.0422133]
[1748619093227,6.1643,162.2,162.16,6.2075133]
[1748619093433,34.385,162.22,162.16,0.0422133]
[1748619094128,32.38,162.22,162.16,0.0422133]
[1748619094436,32.38,162.22,162.16,6.2077133]
[1748619094437,6.1643,162.2,162.16,6.2077133]
[1748619095128,6.1646,162.19,162.16,6.2077133]
[1748619095327,32.38,162.22,162.16,0.0422133]
[1748619096127,6.1639,162.21,162.16,0.0422133]
[1748619096337,32.38,162.22,162.16,0.0422133]
[1748619096528,6.1649,162.18,162.16,0.0422133]
[1748619096733,32.38,162.22,162.16,0.0422133]
[1748619097034,32.38,162.22,162.16,6.2077133]
[1748619097233,6.1646,162.19,162.16,6.2077133]
[1748619097435,32.38,162.22,162.16,0.0422133]
[1748619098828,6.1645,162.19,162.16,0.0422133]
[1748619099034,32.38,162.22,162.16,0.0422133]
[1748619099536,6.1639,162.21,162.16,0.0422133]
[1748619100129,6.1642,162.2,162.16,0.0422133]
[1748619100332,32.38,162.22,162.16,0.0422133]
[1748619102041,6.1631,162.23,162.16,0.0422133]
[1748619102237,32.36,162.26,162.16,2.0020133]
[1748619102542,6.1633,162.22,162.19,6.20998139]
[1748619102739,32.36,162.26,162.19,0.04568139]
[1748619103138,6.1633,162.22,162.19,0.04568139]
[1748619103336,32.36,162.26,162.19,0.04568139]
[1748619103538,6.1637,162.21,162.19,6.20978139]
[1748619103734,6.1637,162.21,162.19,0.04568139]
[1748619104135,6.164,162.2,162.19,0.04568139]
[1748619105330,2.02,162.25,162.19,0.04568139]
[1748619105532,34.38,162.25,162.19,0.04568139]
[1748619106039,6.1631,162.23,162.19,6.21008139]
[1748619106942,34.38,162.25,162.2,6.1639]
[1748619107439,6.163,162.23,162.2,6.1639]
[1748619107841,34.38,162.25,162.2,6.1639]
[1748619108134,34.38,162.25,162.19,0.04568139]
[1748619109443,6.1639,162.21,162.19,0.04568139]
[1748619110943,6.164,162.2,162.19,0.04568139]
[1748619115138,38.8437,162.21,162.19,0.04568139]
[1748619115344,32.68,162.21,162.19,0.04568139]
[1748619115640,32.68,162.21,162.12,32.68]
[1748619115848,2.0422,162.2,162.12,6.167]
[1748619116049,4.1732,162.2,162.09,32.68]
[1748619116347,2.0837,162.19,162.09,32.68]
[1748619116642,2.0837,162.19,162.12,0.04264522]
[1748619116643,6.167,162.13,162.12,0.04264522]
[1748619118444,6.1678,162.11,162.06,34.8514]
[1748619118640,6.1678,162.11,162.06,2.1714]
[1748619118840,32.68,162.15,162.06,2.1714]
[1748619118841,6.1678,162.1,162.06,2.1714]
[1748619119245,6.1678,162.1,162.06,8.3406]
[1748619119438,6.20853268,162.1,162.06,8.38613063]
[1748619120350,0.04073268,162.1,162.06,2.21693063]
[1748619120749,0.04073268,162.1,162.08,6.1686]
[1748619121450,0.04073268,162.1,162.06,2.21693063]
[1748619121854,0.04073268,162.1,162.09,6.1682]
[1748619123455,0.04073268,162.1,162.08,6.1684]
[1748619123752,0.04073268,162.1,162.06,0.04553063]
[1748619123950,6.169,162.07,162.06,0.04553063]
[1748619124142,0.04073268,162.1,162.06,0.04553063]
[1748619125149,6.1685,162.09,162.06,0.04553063]
[1748619125349,0.04073268,162.1,162.06,0.04553063]
[1748619125553,0.04073268,162.1,162.06,6.21453063]
[1748619125753,0.04073268,162.1,162.06,0.04553063]
[1748619126757,6.20873268,162.1,162.07,6.1689]
[1748619126953,0.04073268,162.1,162.06,0.04553063]
[1748619127957,6.1685,162.09,162.06,6.21483063]
[1748619128159,0.04073268,162.1,162.06,0.04553063]
[1748619128355,6.169,162.07,162.06,0.04553063]
[1748619129464,6.1703,162.04,162.0,32.68]
[1748619129664,6.1703,162.04,162.0,6.1714]
[1748619129962,32.7,162.07,161.97,32.7]
[1748619130153,6.17,162.05,162.01,6.1712]
[1748619130355,6.17,162.05,162.01,6.21065631]
[1748619130556,6.21128219,162.05,162.01,6.21065631]
[1748619131060,0.04128219,162.05,162.01,0.03945631]
[1748619131452,0.04128219,162.05,161.94,32.7]
[1748619131659,6.1606,162.06,161.91,36.9483]
[1748619132060,6.1606,162.06,161.94,6.1738]
[1748619132264,6.1606,162.06,161.91,36.9483]
[1748619132459,0.04402616,162.0,161.97,0.03912422]
[1748619132658,32.7,161.99,161.97,0.03912422]
[1748619133059,32.7,161.99,161.91,2.0928]
[1748619133253,34.7153,161.99,161.87,565.54]
[1748619133465,4.0969,161.98,161.86,2.1366]
[1748619133664,6.1749,161.92,161.87,6.1764]
[1748619134161,0.04444788,161.91,161.88,0.04300572]
[1748619134762,32.7,161.97,161.88,0.04300572]
[1748619134964,32.7,161.97,161.85,218.70449089]
[1748619135769,0.04435928,161.93,161.89,0.04314155]
[1748619137359,0.04435928,161.93,161.91,6.1749]
[1748619137567,0.04435928,161.93,161.89,0.04314155]
[1748619137865,6.175,161.92,161.89,0.04314155]
[1748619138364,6.21895928,161.93,161.89,6.21874155]
[1748619138664,0.04435928,161.93,161.89,0.04314155]
[1748619138860,6.1754,161.9,161.89,0.04314155]
[1748619140354,6.175,161.92,161.89,0.04314155]
[1748619140564,32.66435928,161.93,161.89,0.04314155]
[1748619140959,6.1753,161.91,161.89,0.04314155]
[1748619141158,32.66435928,161.93,161.89,0.04314155]
[1748619142060,32.66435928,161.93,161.81,1.9935]
[1748619142264,2.1117,161.92,161.81,1.9935]
[1748619142465,6.1757,161.9,161.81,1.9935]
[1748619142659,32.62,161.89,161.81,1.9935]
[1748619143066,32.62,161.89,161.88,6.1762]
[1748619143266,0.04498802,161.9,161.87,0.04414994]
[1748619143468,0.04498802,161.9,161.88,6.1759]
[1748619143469,0.0463666,161.9,161.88,6.1759]
[1748619143866,0.0463666,161.9,161.87,0.04301031]
[1748619144071,0.0463666,161.9,161.89,6.1758]
[1748619146163,0.0463666,161.9,161.88,6.176]
[1748619146370,0.0463666,161.9,161.87,0.04301031]
[1748619146772,0.0463666,161.9,161.89,6.1758]
[1748619147871,0.0463666,161.9,161.88,6.176]
[1748619148075,0.0463666,161.9,161.87,0.04301031]
[1748619148276,6.2219666,161.9,161.87,0.04301031]
[1748619148578,0.0463666,161.9,161.87,0.04301031]
[1748619148974,0.0463666,161.9,161.89,6.1758]
[1748619149877,0.0463666,161.9,161.88,6.176]
[1748619150177,32.6863666,161.9,161.87,0.04301031]
[1748619150575,6.1762,161.88,161.87,0.04301031]
[1748619151378,32.6863666,161.9,161.87,0.04301031]
[1748619153474,6.1762,161.88,161.87,0.04301031]
[1748619154074,6.1781,161.83,161.78,1.9648]
[1748619154280,2.1465,161.92,161.78,1.9648]
[1748619154281,32.64,161.85,161.8,6.1791]
[1748619154486,32.64,161.85,161.76,32.64]
[1748619154678,32.64,161.85,161.76,6.1805]
[1748619154977,0.04735738,161.82,161.79,0.04429917]
[1748619155181,32.68735738,161.82,161.79,0.04429917]
[1748619155382,0.04735738,161.82,161.79,0.04429917]
[1748619156881,6.22605738,161.82,161.79,0.04429917]
[1748619157076,0.04735738,161.82,161.79,0.04429917]
[1748619157279,32.64,161.81,161.79,0.04429917]
[1748619157483,6.1792,161.8,161.79,0.04429917]
[1748619158988,38.819,161.81,161.79,0.04429917]
[1748619159176,32.64,161.81,161.79,0.04429917]
[1748619160088,0.04735738,161.82,161.79,0.04429917]
[1748619161190,6.1792,161.8,161.79,0.04429917]
[1748619161787,6.1792,161.8,161.73,34.6763]
[1748619161788,6.1801,161.78,161.74,6.1814]
[1748619162187,32.66,161.81,161.73,2.0363]
[1748619162389,32.66,161.81,161.75,6.1811]
[1748619162588,32.66,161.81,161.73,2.0363]
[1748619162789,0.04301088,161.79,161.75,0.04514579]
[1748619163090,6.18,161.78,161.75,0.04514579]
[1748619163592,0.04301088,161.79,161.75,0.04514579]
[1748619164686,0.04301088,161.79,161.68,1.9815]
[1748619164889,2.1166,161.79,161.68,1.9815]
[1748619165088,6.1808,161.76,161.72,6.1819]
[1748619165290,38.8408,161.76,161.68,1.9815]
[1748619165492,32.66,161.76,161.68,1.9815]
[1748619165691,2.1166,161.79,161.7,0.04241334]
[1748619165692,0.04726616,161.74,161.7,0.04241334]
[1748619166289,0.04726616,161.74,161.73,6.1819]
[1748619166489,32.66,161.79,161.7,0.04241334]
[1748619166890,6.1811,161.75,161.72,6.182]
[1748619167191,32.66,161.79,161.68,1.9815]
[1748619167593,0.04002669,161.75,161.72,0.0464185]
[1748619168383,6.1818,161.74,161.72,0.0464185]
[1748619168588,0.04002669,161.75,161.72,0.0464185]
[1748619169395,0.04002669,161.75,161.72,6.2285185]
[1748619169895,0.04002669,161.75,161.72,0.0464185]
[1748619170391,533.74,161.83,161.72,0.0464185]
[1748619170591,6.1791,161.81,161.78,6.1798]
[1748619171293,32.88,161.82,161.75,32.88]
[1748619171492,0.04408817,161.8,161.77,0.04058677]
[1748619171991,0.04408817,161.8,161.79,6.1796]
[1748619172694,32.88,161.86,161.81,6.1784]
[1748619172895,6.1775,161.85,161.75,155.8]
[1748619173297,32.88,161.86,161.75,155.8]
[1748619173491,32.88,161.86,161.75,32.88]
[1748619173692,0.04535443,161.82,161.79,0.04497932]
[1748619175201,6.22385443,161.82,161.8,6.1792]
[1748619175392,6.22385443,161.82,161.79,0.04497932]
[1748619175587,6.22385443,161.82,161.8,6.1792]
[1748619175793,6.179,161.81,161.79,0.04497932]
[1748619175992,0.04535443,161.82,161.79,0.04497932]
[1748619176400,0.04535443,161.82,161.8,6.179]
[1748619176597,0.04535443,161.82,161.79,0.04497932]
[1748619176999,0.04535443,161.82,161.81,6.1788]
[1748619177300,0.04535443,161.82,161.79,0.04497932]
[1748619178709,0.04535443,161.82,161.8,6.179]
[1748619179191,0.04535443,161.82,161.79,0.04497932]
[1748619179397,32.88,161.95,161.8,50.62677921]
[1748619179593,32.88,161.95,161.81,2.1364]
[1748619180101,32.88,161.95,161.82,2.0922]
[1748619180303,0.04668267,161.9,161.87,0.04741523]
[1748619180504,6.1774,161.85,161.8,6.1789]
[1748619180804,35.0397,161.89,161.79,32.88]
[1748619181205,6.1772,161.86,161.81,6.1787]
[1748619181503,0.04374836,161.85,161.82,0.04108427]
[1748619181707,0.04374836,161.85,161.82,6.21948427]
[1748619182005,0.04374836,161.85,161.82,0.04108427]
[1748619183099,0.04374836,161.85,161.82,6.21928427]
[1748619183298,0.04374836,161.85,161.82,0.04108427]
[1748619183903,0.04374836,161.85,161.84,6.1777]
[1748619184204,0.04374836,161.85,161.82,0.04108427]
[1748619184399,0.04374836,161.85,161.82,6.21928427]
[1748619184700,0.04374836,161.85,161.82,0.04108427]
[1748619185201,0.04374836,161.85,161.82,6.21928427]
[1748619185706,0.04374836,161.85,161.84,6.1777]
[1748619186004,0.04374836,161.85,161.82,0.04108427]
[1748619186205,39.0549,161.92,161.83,32.88]
[1748619186408,39.0549,161.92,161.84,2.1039]
[1748619186596,32.88,161.92,161.84,2.1039]
[1748619187203,0.04716052,161.9,161.86,0.04612346]
[1748619189607,6.1765,161.88,161.86,0.04612346]
[1748619191005,0.04716052,161.9,161.86,0.04612346]
[1748619191507,6.22286052,161.9,161.86,0.04612346]
[1748619192206,0.04716052,161.9,161.86,0.04612346]
[1748619192810,0.04716052,161.9,161.79,8.1721]
[1748619193108,36.28677921,161.89,161.74,34.36]
[1748619193306,59.1127,161.88,161.75,6.1809]
[1748619193506,40.5727,161.88,161.73,34.36]
[1748619193906,0.03986818,161.82,161.79,0.04572939]
[1748619194510,0.03986818,161.82,161.81,6.1788]
[1748619194707,0.03986818,161.82,161.79,0.04572939]
[1748619195111,0.03986818,161.82,161.8,6.179]
[1748619196313,0.03986818,161.82,161.81,6.1788]
[1748619198114,34.36,161.91,161.85,6.1773]
[1748619198304,34.36,161.91,161.81,34.36]
[1748619198508,34.36,161.94,161.83,17.74677921]
[1748619198702,34.36,161.94,161.84,2.0224]
[1748619198908,34.36,161.94,161.85,34.36]
[1748619199112,6.1757,161.9,161.88,0.03949024]
[1748619200011,0.0414059,161.91,161.88,0.03949024]
[1748619200408,0.0414059,161.91,161.9,6.1754]
[1748619201111,0.0414059,161.91,161.88,0.03949024]
[1748619202610,0.0414059,161.91,161.89,6.1757]
[1748619202918,0.0414059,161.91,161.88,0.03949024]
[1748619203119,6.2164059,161.91,161.88,6.21539024]
[1748619203312,0.0414059,161.91,161.88,0.03949024]
[1748619206010,6.1757,161.9,161.88,0.03949024]
[1748619206511,0.0414059,161.91,161.88,0.03949024]
[1748619206718,6.1758,161.89,161.88,0.03949024]
[1748619209317,0.0414059,161.91,161.88,0.03949024]
[1748619209915,0.0414059,161.91,161.89,6.1755]
[1748619210122,0.0414059,161.91,161.88,0.03949024]
[1748619210312,6.2166059,161.91,161.88,0.03949024]
[1748619212214,0.0414059,161.91,161.88,0.03949024]
[1748619212918,6.1756,161.9,161.88,0.03949024]
[1748619213914,6.2164059,161.91,161.88,0.03949024]
[1748619214122,0.0414059,161.91,161.88,0.03949024]
[1748619214617,6.1758,161.89,161.88,0.03949024]
[1748619215122,6.1755,161.9,161.88,0.03949024]
[1748619215315,0.0414059,161.91,161.88,0.03949024]
[1748619215815,6.2167059,161.91,161.88,6.21559024]
[1748619216613,6.2167059,161.91,161.88,0.03949024]
[1748619217022,0.0414059,161.91,161.88,0.03949024]
[1748619217817,0.0414059,161.91,161.88,6.21539024]
[1748619218015,0.0414059,161.91,161.88,0.03949024]
[1748619218216,0.0414059,161.91,161.89,6.1755]
[1748619218623,0.0414059,161.91,161.88,0.03949024]
[1748619220123,6.2165059,161.91,161.88,6.21539024]
[1748619220722,0.0414059,161.91,161.88,0.03949024]
[1748619221224,6.1758,161.89,161.88,0.03949024]
[1748619221926,33.86,161.89,161.8,2.0611]
[1748619222223,33.86,161.89,161.81,6.1786]
[1748619222421,6.1779,161.84,161.8,2.0611]
[1748619222619,10.64686912,161.88,161.79,36.0161]
[1748619222815,6.178,161.84,161.82,0.04368183]
[1748619223017,0.03928228,161.85,161.82,0.04368183]
[1748619223421,33.89928228,161.85,161.76,35.8348]
[1748619224117,33.89928228,161.85,161.81,6.1788]
[1748619224528,33.89928228,161.85,161.81,6.22502283]
[1748619226115,6.1779,161.84,161.81,0.04622283]
[1748619226626,6.1784,161.82,161.81,0.04622283]
[1748619227524,33.89928228,161.85,161.73,33.88]
[1748619227728,33.86,161.85,161.74,6.1812]
[1748619228322,33.86,161.85,161.73,33.88]
[1748619228518,33.86,161.85,161.71,4.2131]
[1748619228519,0.04554151,161.81,161.77,0.04069534]
[1748619228722,33.88,161.8,161.77,0.04069534]
[1748619228924,6.18,161.78,161.77,0.04069534]
[1748619230118,33.88,161.8,161.77,0.04069534]
[1748619230829,6.1797,161.79,161.77,0.04069534]
[1748619231521,6.18,161.78,161.77,0.04069534]
[1748619233129,6.18,161.78,161.77,9.534e-05]
[1748619233322,33.88,161.8,161.68,1.9585]
[1748619234316,0.04300564,161.76,161.72,0.03938595]
[1748619234521,33.92300564,161.76,161.72,0.03938595]
[1748619236130,6.1818,161.74,161.72,0.03938595]
[1748619236830,33.92300564,161.76,161.72,0.03938595]
[1748619237330,33.92300564,161.76,161.73,6.1819]
[1748619237528,33.92300564,161.76,161.72,0.03938595]
[1748619238120,0.04300564,161.76,161.72,0.03938595]
[1748619238534,0.04300564,161.76,161.74,6.1815]
[1748619238729,0.04300564,161.76,161.72,0.03938595]
[1748619239119,0.04300564,161.76,161.74,6.1814]
[1748619239325,0.04300564,161.76,161.72,0.03938595]
[1748619239720,0.04300564,161.76,161.75,6.1811]
[1748619240828,0.04300564,161.76,161.74,6.1814]
[1748619241033,0.04300564,161.76,161.72,2.03768595]
[1748619241335,0.04300564,161.76,161.72,0.03938595]
[1748619241532,0.04300564,161.76,161.72,6.22148595]
[1748619242230,0.04300564,161.76,161.72,0.03938595]
[1748619242631,6.1819,161.73,161.72,0.03938595]
[1748619245430,6.1834,161.7,161.65,35.8983]
[1748619246032,6.1828,161.71,161.67,6.1838]
[1748619246235,0.04065541,161.71,161.67,6.23055108]
[1748619246835,6.22345541,161.71,161.67,6.23055108]
[1748619247738,0.04065541,161.71,161.67,0.04675108]
[1748619248129,0.04065541,161.71,161.67,10.71368057]
[1748619248330,0.04065541,161.71,161.7,6.183]
[1748619252939,0.04065541,161.71,161.69,6.1833]
[1748619253238,0.04065541,161.71,161.67,0.04675108]
[1748619253537,0.04065541,161.71,161.69,6.1832]
[1748619253739,0.04065541,161.71,161.67,0.04675108]
[1748619254536,0.04065541,161.71,161.69,6.1834]
[1748619254743,6.22335541,161.71,161.69,6.1834]
[1748619255039,33.48065541,161.71,161.67,0.04675108]
[1748619255237,6.1838,161.68,161.67,0.04675108]
[1748619256339,33.48065541,161.71,161.67,0.04675108]
[1748619256933,10.66692949,161.69,161.58,33.44]
[1748619257237,6.185,161.65,161.61,6.1862]
[1748619257747,33.44,161.67,161.58,44.10692949]
[1748619258048,0.04551912,161.64,161.61,0.043267]
[1748619258438,6.186,161.63,161.61,0.043267]
[1748619258636,0.04551912,161.64,161.61,0.043267]
[1748619259342,0.04551912,161.64,161.57,2.015]
[1748619259343,10.71244861,161.64,161.55,2.0701]
[1748619259546,10.66692949,161.61,161.5,2.0259]
[1748619259751,10.66692949,161.55,161.44,6.2301]
[1748619260041,33.44,161.54,161.44,4.096]
[1748619260250,0.04235807,161.51,161.47,0.04279144]
[1748619264042,0.04235807,161.51,161.5,6.1907]
[1748619264847,0.04235807,161.51,161.49,6.1909]
[1748619265041,0.04235807,161.51,161.47,0.04279144]
[1748619265449,0.04235807,161.51,161.5,6.1907]
[1748619267549,33.46,161.57,161.47,51.3253265]
[1748619267742,39.6471,161.6,161.47,51.28253506]
[1748619267942,39.6471,161.6,161.56,6.1881]
[1748619268348,33.46,161.6,161.51,33.46]
[1748619268548,33.50141819,161.6,161.56,6.23332841]
[1748619269650,33.50141819,161.6,161.57,6.1879]
[1748619270145,33.50141819,161.6,161.56,0.04502841]
[1748619271846,0.04141819,161.6,161.56,0.04502841]
[1748619272053,0.04141819,161.6,161.59,6.1872]
[1748619273145,33.46,161.65,161.63,6.1855]
[1748619273345,33.46,161.65,161.55,51.28253506]
[1748619273549,33.46,161.65,161.55,33.46]
[1748619273945,39.6451,161.65,161.55,33.46]
[1748619274145,0.04021906,161.62,161.58,0.03904255]
[1748619274749,0.04021906,161.62,161.61,6.1865]
[1748619276945,0.04021906,161.62,161.58,0.03904255]
[1748619277147,39.5667,161.61,161.58,0.03904255]
[1748619277347,39.5667,161.61,161.58,6.22664255]
[1748619277645,33.38,161.61,161.58,6.22664255]
[1748619277843,33.38,161.61,161.59,6.1872]
[1748619278045,33.38,161.61,161.58,0.03904255]
[1748619278447,0.04021906,161.62,161.58,0.03904255]
[1748619278852,0.04021906,161.62,161.6,6.1866]
[1748619279146,0.04021906,161.62,161.58,0.03904255]
[1748619279350,0.04021906,161.62,161.59,6.1871]
[1748619279544,0.04021906,161.62,161.58,0.03904255]
[1748619281855,0.04021906,161.62,161.61,6.1865]
[1748619282447,33.38,161.68,161.6,33.38]
[1748619282649,33.38,161.71,161.62,17.82253506]
[1748619283055,33.38,161.71,161.66,6.1843]
[1748619283250,6.1839,161.68,161.62,17.82253506]
[1748619283454,0.04741026,161.67,161.63,0.04044472]
[1748619283647,0.04741026,161.67,161.64,6.1852]
[1748619284856,6.23161026,161.67,161.64,6.1852]
[1748619285054,0.04741026,161.67,161.63,6.22604472]
[1748619285456,0.04741026,161.67,161.63,0.04044472]
[1748619285653,0.04741026,161.67,161.64,6.185]
[1748619286757,6.23181026,161.67,161.64,6.185]
[1748619286955,0.04741026,161.67,161.63,0.04044472]
[1748619287362,6.1853,161.64,161.63,0.04044472]
[1748619288452,33.40741026,161.67,161.57,33.36]
[1748619288658,1.967,161.66,161.59,6.1871]
[1748619289049,6.1859,161.63,161.54,35.4035]
[1748619289260,33.36,161.67,161.56,17.82253506]
[1748619289458,33.36,161.67,161.6,0.0470757]
[1748619289667,0.04429901,161.63,161.6,0.0470757]
[1748619289963,0.04429901,161.63,161.62,6.1861]
[1748619290563,33.38,161.7,161.6,0.0470757]
[1748619290761,33.38,161.7,161.58,33.36]
[1748619291061,6.1843,161.67,161.64,6.1851]
[1748619291363,33.38,161.7,161.58,33.36]
[1748619291562,0.04509886,161.66,161.63,6.1856]
[1748619292057,0.04509886,161.66,161.62,0.0395796]
[1748619292264,6.22969886,161.66,161.63,6.1856]
[1748619292457,0.04509886,161.66,161.63,6.1856]
[1748619293163,0.04509886,161.66,161.62,0.0395796]
[1748619293663,0.04509886,161.66,161.63,6.1854]
[1748619293860,0.04509886,161.66,161.62,33.3995796]
[1748619296170,0.04509886,161.66,161.63,6.1854]
[1748619296666,6.22979886,161.66,161.63,6.1854]
[1748619297263,6.185,161.65,161.62,39.5854796]
[1748619297668,0.04509886,161.66,161.62,33.3995796]
[1748619298065,6.1852,161.65,161.62,39.5854796]
[1748619299163,0.04509886,161.66,161.62,33.3995796]
[1748619299866,0.04509886,161.66,161.63,6.1856]
[1748619300266,0.04509886,161.66,161.62,33.3995796]
[1748619300465,0.04509886,161.66,161.62,0.0395796]
[1748619300865,6.185,161.65,161.62,6.2255796]
[1748619301070,0.04509886,161.66,161.62,0.0395796]
[1748619301869,6.1855,161.64,161.62,0.0395796]
[1748619302063,0.04509886,161.66,161.62,0.0395796]
[1748619305061,6.185,161.65,161.62,0.0395796]
[1748619305264,0.04509886,161.66,161.62,0.0395796]
[1748619306866,0.04509886,161.66,161.55,33.36]
[1748619306867,33.36,161.65,161.55,33.36]
[1748619307071,35.3646,161.65,161.55,33.36]
[1748619307271,6.1874,161.59,161.55,33.36]
[1748619307673,6.1879,161.58,161.55,33.36]
[1748619307871,0.04652427,161.58,161.55,33.40013241]
[1748619309074,0.04652427,161.58,161.57,6.188]
[1748619309263,33.36,161.65,161.57,10.67642688]
[1748619309665,35.2562,161.68,161.58,6.0313]
[1748619309866,6.1867,161.61,161.59,33.22]
[1748619310267,0.04121936,161.62,161.58,2.03234245]
[1748619310465,0.04121936,161.62,161.58,2.03333576]
[1748619311964,6.22741936,161.62,161.59,6.1869]
[1748619312165,0.04121936,161.62,161.58,2.03333576]
[1748619312674,6.1867,161.61,161.58,2.03333576]
[1748619313072,6.1872,161.59,161.58,0.04443576]
[1748619315065,0.04121936,161.62,161.58,0.04443576]
[1748619315665,0.04121936,161.62,161.58,6.23183576]
[1748619316376,0.04121936,161.62,161.58,0.04443576]
[1748619316781,6.22761936,161.62,161.59,6.187]
[1748619317972,0.04121936,161.62,161.58,6.23193576]
[1748619318177,0.04121936,161.62,161.58,0.04443576]
[1748619318371,0.04121936,161.62,161.6,6.1867]
[1748619318778,0.04121936,161.62,161.58,10.72086264]
[1748619318976,0.04121936,161.62,161.58,43.94086264]
[1748619320585,0.04121936,161.62,161.58,33.26443576]
[1748619320879,0.04121936,161.62,161.58,0.04443576]
[1748619321284,6.1873,161.59,161.58,0.04443576]
[1748619322385,33.22,161.59,161.52,33.22]
[1748619322586,33.22,161.59,161.54,6.1889]
[1748619322785,39.4075,161.59,161.52,33.22]
[1748619323189,0.04540097,161.57,161.54,6.23356723]
[1748619323377,0.04540097,161.57,161.54,0.04446723]
[1748619324283,0.04540097,161.57,161.56,6.1884]
[1748619325486,6.1888,161.55,161.54,0.04446723]
[1748619325995,33.22,161.55,161.5,6.1905]
[1748619326299,33.22,161.55,161.47,2.0266]
[1748619326487,33.22,161.55,161.47,12.70302688]
[1748619326689,39.409,161.55,161.47,12.70302688]
[1748619326895,0.04057063,161.53,161.49,0.04129527]
[1748619327094,0.04057063,161.53,161.52,6.1896]
[1748619327994,0.04057063,161.53,161.51,6.1902]
[1748619328292,0.04057063,161.53,161.49,0.04129527]
[1748619328684,0.04057063,161.53,161.52,6.1899]
[1748619329394,6.1884,161.57,161.5,43.89642688]
[1748619329893,6.1884,161.57,161.54,6.189]
[1748619330195,6.23369931,161.57,161.54,6.23348644]
[1748619330394,6.1884,161.56,161.54,0.04448644]
[1748619330588,0.04529931,161.57,161.54,0.04448644]
[1748619331497,6.1888,161.55,161.54,0.04448644]
[1748619336803,6.1888,161.55,161.54,8.644e-05]
[1748619337501,2.0716,161.56,161.45,10.2883]
[1748619337700,1.991,161.54,161.45,10.2883]
[1748619337904,33.14,161.53,161.45,10.2883]
[1748619338202,6.1917,161.48,161.45,10.2883]
[1748619338391,6.1917,161.48,161.46,6.1922]
[1748619338594,6.23250781,161.48,161.46,6.1922]
[1748619339202,6.1919,161.47,161.45,6.23474585]
[1748619339506,0.04080781,161.48,161.45,6.23474585]
[1748619339703,6.23260781,161.48,161.45,6.23474585]
[1748619339897,0.04080781,161.48,161.45,0.04224585]
[1748619340297,6.1919,161.47,161.45,0.04224585]
[1748619340493,0.04080781,161.48,161.45,0.04224585]
[1748619340899,6.1921,161.47,161.45,0.04224585]
[1748619341403,0.04080781,161.48,161.45,0.04224585]
[1748619341906,0.04080781,161.48,161.46,6.192]
[1748619342403,6.23230781,161.48,161.46,6.192]
[1748619342796,0.04080781,161.48,161.46,6.192]